Cogmind - Beta 15 @@@ ROGUE MODE // 2025.05.31 @ 15:41:24 Player: Xan Kriegor Result: Self-destructed Performance ------------- Evolutions (2) 1000 Regions Visited (5) 1000 Robots Destroyed (45) 225 Value Destroyed (1345) 1345 Prototype IDs (0) 0 Alien Tech Used (0) 0 Bonus (200) 200 TOTAL SCORE: 3770 Bonus ------- Entered Garrisons 200 Cogmind --------- Core Integrity 93/550 Matter 18/300 Energy 91/100 System Corruption 1% Temperature Cool (0) Movement Walking (190) Ox1 Location -8/Garrison Parts ------- > --- POWER (1) -------- (None) > --- PROPULSION (4) --- Aluminum Leg > --- UTILITY (4) ------ Improved Heat Sink Medium Storage Unit Sensor Array Targeting Computer > --- WEAPON (2) ------- (None) > --- INVENTORY (10) --- Compact Matter Pod (0) Structural Scanner Terrain Scanner Target Analyzer Light Assault Rifle Light Assault Rifle Light Assault Rifle Peak State ------------ > --- POWER ------------ Light Nuclear Core > --- PROPULSION ------- Light Treads Armored Treads Advanced Treads Improved Aluminum Leg > --- UTILITY ---------- Improved Heat Sink Medium Storage Unit Terrain Scan Processor Targeting Computer > --- WEAPON ----------- EM Pulse Cannon High-powered Shotgun > --- INVENTORY -------- Light Ion Engine Compact Matter Pod Structural Scanner Sensor Array Terrain Scanner Particle Gun Heavy Assault Rifle Improved Light Cannon Rocket Launcher [Rating: 26] Favorites ----------- Power Light Nuclear Core Engine Light Ion Engine Power Core Light Nuclear Core Propulsion Aluminum Leg Treads Light Treads Leg Aluminum Leg Wheel Subdweller Monowheel Utility Medium Storage Unit Device Terrain Scanner Storage Medium Storage Unit Processor Terrain Scan Processor Weapon Assault Rifle Energy Gun Particle Gun Energy Cannon EM Pulse Cannon Ballistic Gun Assault Rifle Ballistic Cannon Improved Light Cannon Launcher Rocket Launcher Build | -11 -10 -10 -10 -8 -8 ------- Run | Yrd Mat Min Sub Mat Gar Slots Evolved 4 | . . . . 4 . Power . | . . . . . . Propulsion 2 | . . . . 2 . Utility 2 | . . . . 2 . Weapon . | . . . . . . Parts Attached 55 | 7 6 4 6 18 14 Power 10 | 1 1 1 1 2 4 Engine 4 | 1 1 . 1 . 1 Core 6 | . . 1 . 2 3 Reactor . | . . . . . . Propulsion 23 | 3 2 1 3 9 5 Treads 7 | . 2 . . 3 2 Leg 11 | 2 . 1 1 4 3 Wheel 5 | 1 . . 2 2 . Hover . | . . . . . . Flight . | . . . . . . Utility 9 | 1 2 1 . 3 2 Device 4 | . 1 1 . 1 1 Storage 2 | 1 1 . . . . Processor 3 | . . . . 2 1 Hackware . | . . . . . . Protection . | . . . . . . Artifact . | . . . . . . Weapon 13 | 2 1 1 2 4 3 Energy Gun 1 | . . . . . 1 Energy Cannon 1 | . . . . 1 . Ballistic Gun 9 | 2 1 . 1 3 2 Ballistic Cannon 1 | . . 1 . . . Launcher 1 | . . . 1 . . Special Weapon . | . . . . . . Impact Weapon . | . . . . . . Slashing Weapon . | . . . . . . Piercing Weapon . | . . . . . . Special Melee Weapon . | . . . . . . Unidentified Prototypes . | . . . . . . Parts Lost 25 | . . . 1 9 15 Power 7 | . . . . 3 4 Propulsion 9 | . . . . 4 5 Utility 1 | . . . . . 1 Weapon 8 | . . . 1 2 5 Highest Loss Streak 10 | . . . 1 3 10 To Critical Strikes 2 | . . . . 1 1 Average Backups 8 | 4 8 9 9 7 8 Power 1 | . 1 1 1 . . Propulsion 1 | 3 4 2 1 . 1 Utility 2 | . . 2 4 2 4 Weapon 2 | . 1 2 2 3 2 Tool/Special . | . . . . . . Unused Backups 7 | . 3 2 . . 2 Power . | . . . . . . Propulsion 3 | . 1 2 . . . Utility 2 | . . . . . 2 Weapon 2 | . 2 . . . . Tool/Special . | . . . . . . Average Slot Usage (%) 95 | . 93 100 98 93 92 Engine 4 | . 14 . 4 2 1 Core 7 | . . 13 9 5 6 Treads 8 | . 23 . . 2 21 Leg 15 | . 4 28 17 17 9 Wheel 4 | . . . 9 10 . Device 12 | . 7 14 14 13 10 Storage 11 | . 14 14 14 9 9 Processor 6 | . . . . 13 16 Energy Cannon 1 | . . . . 4 1 Ballistic Gun 18 | . 28 26 23 8 9 Ballistic Cannon 1 | . . 1 . 3 . Launcher 1 | . . . 4 . 2 Peak Build Rating 26 | 6 8 11 14 24 26 Average Rating 14 | 4 7 10 12 20 21 On Entrance 9 | . 6 8 10 11 24 Naked Turns . | . . . . . . Heaviest Build 27 | 12 18 21 21 27 25 Greatest Support 82 | 20 40 20 40 62 82 Greatest Overweight (x) 5 | . . 1 1 1 5 Average Overweight (x) . | . . . . . . Largest Inventory Capacity 10 | 8 10 10 10 10 10 Average Capacity 9 | 6 9 10 10 10 10 Most Carried 10 | 6 10 10 10 10 10 Average Carried 8 | 4 8 9 9 7 8 Final Capacity 10 | 8 10 10 10 10 10 Final Carried 10 | 6 8 10 8 9 7 Class Distribution -------------------- 60% | Mutant 25% | Scavenger-Mutant 11% | Skirmisher Dominant Class ---------------- Mutant | -10/Materials Mutant | -10/Mines Mutant | -10/Subcaves Scavenger-Mutant | -8/Materials Scavenger-Mutant | -8/Garrison Resources | -11 -10 -10 -10 -8 -8 ----------- Run | Yrd Mat Min Sub Mat Gar Matter Collected 1413 | 201 143 200 95 503 271 Remotely . | . . . . . . Salvage Created 1317 | . 153 157 156 464 387 Parts 89 | . 17 9 14 26 23 Haulers Intercepted . | . . . . . . Recyclers Shooed 1 | . 1 . . . . Parts Field Recycled . | . . . . . . Retrieved Matter . | . . . . . . Parts Self-Destructed 1 | . . . 1 . . Prevented . | . . . . . . Kills | -11 -10 -10 -10 -8 -8 ------- Run | Yrd Mat Min Sub Mat Gar Combat Hostiles Destroyed 39 | . 5 4 4 11 15 Guns 28 | . 5 3 3 7 10 Cannons 5 | . . 1 . 4 . AOE 6 | . . . 1 . 5 Classes Destroyed 13 | . 5 . 1 5 2 Worker 2 | . . . . 2 . Builder 1 | . 1 . . . . Recycler 1 | . . . . 1 . Operator 1 | . 1 . . . . Watcher 1 | . 1 . . . . Swarmer 13 | . 3 . . 3 7 Grunt 11 | . 2 4 . 2 3 Brawler 1 | . . . . . 1 Duelist 2 | . . . . 1 1 Sentry 3 | . . . . 3 . Hunter 4 | . . . . 2 2 Programmer 1 | . . . . . 1 Subdweller 4 | . . . 4 . . Best Kill Streak 5 | . 3 2 2 4 5 Combat Bots Only 5 | . 3 2 2 3 5 Max Kills in Single Turn 2 | . 1 1 1 1 2 Gunslinging 1 | . . . . . 1 Exploded 2 | . . . 1 . 2 Melee . | . . . . . . Uniques/NPCs Destroyed . | . . . . . . Combat | -11 -10 -10 -10 -8 -8 -------- Run | Yrd Mat Min Sub Mat Gar Hostile Shots Fired 376 | . 34 23 11 113 195 Missed 110 | . 9 9 4 35 53 Hits 266 | . 25 14 7 78 142 Melee 9 | . . . . 2 7 Projectile 257 | . 25 14 7 76 135 Critical Strikes 12 | . . 2 . 5 5 Damage Taken 3676 | . 214 198 272 1081 1911 Core 553 | . 37 48 11 132 325 Absorbed by Shields . | . . . . . . Core Remaining (%) 80 | 100 . . 61 . . Volleys Fired 131 | . 15 14 16 47 39 Largest 2 | . 2 2 2 2 2 Hottest 98 | . 40 53 61 96 98 Shots Fired 252 | . 30 28 28 94 72 Gun 179 | . 30 20 24 44 61 Cannon 62 | . . 8 . 50 4 Launcher 11 | . . . 4 . 7 Special . | . . . . . . Kinetic 197 | . 30 28 24 74 41 Thermal 20 | . . . . . 20 Explosive 11 | . . . 4 . 7 Electromagnetic 24 | . . . . 20 4 Robot Hit Streak 14 | . 4 5 5 8 14 Robot Miss Streak 5 | . 2 3 3 5 5 Penetration Max . | . . . . . . Secondary Targets 8 | . 2 . 1 1 4 Max Gunslinging Chain 1 | . 1 . 1 1 1 Shots Hit Robots 165 | . 18 17 16 63 51 Core Hits 81 | . 9 9 10 25 28 Critical Kills . | . . . . . . Critical Parts Destroyed . | . . . . . . Critical Strikes 3 | . . . . 2 1 Burn 1 | . . . . . 1 Blast 1 | . . . . 1 . Corrupt 1 | . . . . 1 . Melee Attacks . | . . . . . . Impact . | . . . . . . Slashing . | . . . . . . Piercing . | . . . . . . Sneak Attacks . | . . . . . . Combat Hostiles . | . . . . . . Follow-up Attacks . | . . . . . . Damage Inflicted 3446 | . 249 229 426 1269 1273 Guns 1854 | . 244 107 221 468 814 Cannons 941 | . . 112 . 801 28 Explosions 636 | . . . 205 . 431 Melee . | . . . . . . Ramming 15 | . 5 10 . . . Kinetic 2097 | . 244 219 221 829 584 Thermal 230 | . . . . . 230 Explosive 636 | . . . 205 . 431 Electromagnetic 468 | . . . . 440 28 Impact . | . . . . . . Slashing . | . . . . . . Piercing . | . . . . . . Highest Corruption 1 | . . . . . 1 Average Corruption 1 | . . . . . 1 Corruption Purged . | . . . . . . Corruption Blocked . | . . . . . . Effects 2 | . . . . . 2 Matter Fused 1 | . . . . . 1 Heat Flow Errors 1 | . . . . . 1 Overload Shots . | . . . . . . Overflow Damage 12 | . . . . . 12 Projectiles . | . . . . . . Explosions 12 | . . . . . 12 Melee . | . . . . . . Knockbacks 5 | . . 2 . 3 . Impact . | . . . . . . Kinetic 4 | . . 2 . 2 . Secondary 1 | . . . . 1 . Self-Inflicted Damage 53 | . . . 35 . 18 Shots 2 | . . . 1 . 1 Rammed . | . . . . . . Targets Rammed 3 | . 1 2 . . . Kicked 2 | . . 2 . . . Crushed 1 | . 1 . . . . Highest Temperature 243 | . . 67 . 243 104 Average Temperature 50 | . . 26 . 69 13 Received Heat Transfer 717 | . 48 144 30 234 261 Siege Activations . | . . . . . . Martial Activations . | . . . . . . Shielding Activations . | . . . . . . Robots Disrupted 1 | . . . . 1 . Combat Hostiles 1 | . . . . 1 . Robots Corrupted . | . . . . . . Combat Hostiles . | . . . . . . Parts Fried 2 | . . . . 2 . Impact Corruptions . | . . . . . . Robots Melted . | . . . . . . Combat Hostiles . | . . . . . . Parts Melted . | . . . . . . Heat Transferred 629 | . . . . . 629 Parts Sabotaged . | . . . . . . Parts Stolen . | . . . . . . Parts Stripped . | . . . . . . Power Chain Reactions . | . . . . . . Alert | -11 -10 -10 -10 -8 -8 ------- Run | Yrd Mat Min Sub Mat Gar Maximum Alert Level 1 | . . . . . 1 Low Security (%) 94 | 100 100 100 . 100 72 Level 1 5 | . . . . . 27 Level 2 . | . . . . . . Level 3 . | . . . . . . Level 4 . | . . . . . . Level 5 . | . . . . . . High Security . | . . . . . . Max Security . | . . . . . . Peak Influence 290 | . 70 81 . 60 290 Initial 21 | . . 21 . . 20 Average 38 | . 8 21 . 17 133 Influence Increases 952 | . 127 100 . 315 410 Destroy 0b10 Robot/C 700 | . 100 80 . 220 300 Destroy 0b10 Robot/NC 30 | . 15 . . 15 . Destroy Leader 122 | . 12 20 . 70 20 Successful Hack 9 | . . . . 9 . Anti-Garrison Action 50 | . . . . . 50 Destroy Structure 26 | . . . . 1 25 Lose Combat Pursuer 15 | . . . . . 15 Influence Decreases 672 | . 73 154 . 283 162 Entered New Map 45 | . . 33 . . 12 Time Decay 424 | . 73 121 . 230 . Lost Part 203 | . . . . 53 150 Squads Dispatched 2 | . 1 . . 1 . Investigation . | . . . . . . Extermination . | . . . . . . Reinforcement 1 | . 1 . . . . Assault . | . . . . . . Garrison 1 | . . . . 1 . Intercept . | . . . . . . Searches Triggered . | . . . . . . Construction Impeded . | . . . . . . Haulers Reinforced . | . . . . . . Active Scanning Responses . | . . . . . . Cargo Convoy Interrupts . | . . . . . . Stealth | -11 -10 -10 -10 -8 -8 --------- Run | Yrd Mat Min Sub Mat Gar Distress Signals 1 | . . . . 1 . Communications Jammed . | . . . . . . Distress Signals . | . . . . . . Times Spotted 55 | . 11 6 4 14 20 Peak Tracking Total 5 | . 3 3 2 4 5 Tactical Retreats 1 | . . . . . 1 Traps | -11 -10 -10 -10 -8 -8 ------- Run | Yrd Mat Min Sub Mat Gar Traps Triggered 2 | . . . 2 . . Indirectly . | . . . . . . Trap Hack Attempts . | . . . . . . Triggered . | . . . . . . Disarmed 6 | . . . . 6 . Reprogrammed . | . . . . . . Reused . | . . . . . . Traps Extracted . | . . . . . . Installed . | . . . . . . Triggered . | . . . . . . Machines | -11 -10 -10 -10 -8 -8 ---------- Run | Yrd Mat Min Sub Mat Gar Machines Disabled . | . . . . . . Max in Single Turn . | . . . . . . Machines Repaired . | . . . . . . Machines Dismantled . | . . . . . . Machines Sabotaged . | . . . . . . Overloaded Fab Kills . | . . . . . . Hacking | -11 -10 -10 -10 -8 -8 --------- Run | Yrd Mat Min Sub Mat Gar Machines Accessed 9 | . 1 . . 7 1 Terminals 7 | . 1 . . 5 1 Fabricators . | . . . . . . Repair Stations . | . . . . . . Recycling Units 1 | . . . . 1 . Scanalyzers . | . . . . . . Garrison Access 1 | . . . . 1 . Total Hacks 30 | . 6 . . 22 2 Successful 15 | . 3 . . 12 . Failed 15 | . 3 . . 10 2 Catastrophic 2 | . . . . 2 . Database Lockouts . | . . . . . . Manual 2 | . . . . 2 . Terminals 26 | . 6 . . 18 2 Fabricators . | . . . . . . Repair Stations . | . . . . . . Recycling Units 3 | . . . . 3 . Scanalyzers . | . . . . . . Garrison Access 1 | . . . . 1 . Terminal Hacks 12 | . 3 . . 9 . Record 4 | . 1 . . 3 . Alert Level 1 | . . . . 1 . Locate Traps 2 | . . . . 2 . Disarm Traps 1 | . . . . 1 . Transport Status 1 | . 1 . . . . Hauler Manifests 2 | . . . . 2 . Zone Layout 1 | . 1 . . . . Fabricator Hacks . | . . . . . . Repair Station Hacks . | . . . . . . Recycling Unit Hacks 2 | . . . . 2 . Report Inventory 1 | . . . . 1 . Retrieve Components 1 | . . . . 1 . Scanalyzer . | . . . . . . Garrison Access Hacks 1 | . . . . 1 . Unlock Access 1 | . . . . 1 . Unauthorized Hacks . | . . . . . . Terminals . | . . . . . . Fabricators . | . . . . . . Repair Stations . | . . . . . . Recycling Units . | . . . . . . Scanalyzers . | . . . . . . Garrison Access . | . . . . . . Data Cores Recovered 1 | . 1 . . . . Used . | . . . . . . Hacking Detections 7 | . 1 . . 5 1 Full Trace Events 1 | . . . . . 1 Feedback Events . | . . . . . . Feedback Blocked . | . . . . . . Robot Schematics Acquired . | . . . . . . Robots Built . | . . . . . . Authchips . | . . . . . . Time . | . . . . . . Total Robot Build Rating . | . . . . . . Part Schematics Acquired . | . . . . . . Parts Built . | . . . . . . Authchips . | . . . . . . Time . | . . . . . . Total Part Build Rating . | . . . . . . Parts Repaired . | . . . . . . Time . | . . . . . . Parts Recycled . | . . . . . . Recycled Matter . | . . . . . . Retrieved Matter . | . . . . . . Retrieved Components 9 | . . . . 9 . Parts Scanalyzed . | . . . . . . Part Schematics Acquired . | . . . . . . Parts Damaged . | . . . . . . Bothacking | -11 -10 -10 -10 -8 -8 ------------ Run | Yrd Mat Min Sub Mat Gar Used RIF Installer . | . . . . . . Robots Hacked . | . . . . . . Non-combat . | . . . . . . Combat . | . . . . . . Robot Hacks Applied . | . . . . . . Relay Couplers Released 4 | . . . . . 4 Programmers 4 | . . . . . 4 Fabnet Peak Effective % . | . . . . . . Robots Rewired . | . . . . . . Allies Hacked . | . . . . . . Hacks Repelled . | . . . . . . Allies | -11 -10 -10 -10 -8 -8 -------- Run | Yrd Mat Min Sub Mat Gar Total Allies . | . . . . . . Largest Group . | . . . . . . Highest-Rated Group . | . . . . . . Highest-Rated Ally . | . . . . . . Total Orders . | . . . . . . Ally Attacks . | . . . . . . Total Damage . | . . . . . . Kills . | . . . . . . Allies Corrupted . | . . . . . . Allies Melted . | . . . . . . Intel | -11 -10 -10 -10 -8 -8 ------- Run | Yrd Mat Min Sub Mat Gar Active Infowar (turns) 2045 | . 264 527 451 712 91 Sensors 510 | . . . . 421 89 Terrain 1173 | . . 215 451 505 2 Structural 742 | . 264 312 . 166 . Robot Analysis Total . | . . . . . . Derelict Logs Recovered 3 | . . 1 2 . . Drone Launches . | . . . . . . Drone Recoveries . | . . . . . . Exploration | -11 -10 -10 -10 -8 -8 ------------- Run | Yrd Mat Min Sub Mat Gar Turns Passed 2636 | 64 465 527 451 712 417 Spaces Moved 1503 | 47 254 387 271 384 160 Core 21 | 12 . . . . 9 Treads 351 | . 205 . . 37 109 Legs 727 | 33 49 387 130 86 42 Wheels 404 | 2 . . 141 261 . Hover . | . . . . . . Flight . | . . . . . . Fastest Speed 50 | 50 120 120 110 90 120 Average Speed 133 | 101 152 121 145 119 157 Slowest Speed 300 | 120 160 190 190 240 300 Overloaded Moves . | . . . . . . Propulsion Burnouts . | . . . . . . Robots Hopped . | . . . . . . Potential Cave-ins . | . . . . . . Cave-ins Triggered . | . . . . . . Exploration Rate (%) 36 | 5 52 85 19 33 24 Regions Visited 5 Branch Regions 2 Pre-discovered Areas . | . . . . . . Known Exits Taken 2 | . . 1 . 1 . Unknown Exits Taken 3 | 1 1 . 1 . . Scrap Searched 2 | . . 2 . . . Spaces Dug . | . . . . . . Terrain Destroyed 34 | . . . 12 1 21 Melee . | . . . . . . Projectile 1 | . . . . 1 . AOE 33 | . . . 12 . 21 Terrain Rammed . | . . . . . . Walls Destroyed . | . . . . . . Machines Disabled . | . . . . . . Actions | -11 -10 -10 -10 -8 -8 --------- Run | Yrd Mat Min Sub Mat Gar Total 1874 | 60 301 417 301 541 254 Wait 68 | . 8 . 3 53 4 Move 1499 | 46 253 386 270 384 160 Hop . | . . . . . . Pick Up 54 | 7 8 5 . 19 15 Fast Attach 15 | 5 3 1 2 2 2 Attach 34 | 1 . . 3 17 13 Detach 2 | . . . 1 1 . Swap 35 | 1 5 4 2 11 12 Drop 33 | . 8 5 4 7 9 Fire 131 | . 15 14 16 47 39 Melee . | . . . . . . Ram . | . . . . . . Kick 2 | . . 2 . . . Crush 1 | . 1 . . . . Escape Stasis . | . . . . . . Rewire . | . . . . . . Trap . | . . . . . . Miscellaneous . | . . . . . . Route ------- -11/Scrapyard -10/Materials (discovered 2 exits: [*Mat] / [*Min]) -10/Mines (discovered 2 exits: [*Mat] / *Sub) -10/Subcaves -8/Materials (discovered 3 exits: [*Fac] / [*Sto] / Gar) -8/Garrison History --------- Turn | Location | Event 10 | -11/Scrapyard | Discovered new exit (range 15) 65 | -11/Scrapyard | Entered Materials 293 | -10/Materials | Discovered new exit (range 16) 306 | -10/Materials | Build established: Mutant 447 | -10/Materials | Discovered new exit (range 14) 530 | -10/Materials | Entered Mines 537 | -10/Mines | Received a Rocket Launcher from a helpful Derelict 625 | -10/Mines | Discovered new exit (range 8) 790 | -10/Mines | Found DCF Scrap (12 items) 934 | -10/Mines | Identified exit to Subcaves 1057 | -10/Mines | Entered Subcaves 1058 | -10/Subcaves | Approached by a straggling Scientist 1064 | -10/Subcaves | Shifting Twisted Machinery released Barrage Gun 1159 | -10/Subcaves | Learned Materials emergency access door positions 1338 | -10/Subcaves | Shifting Twisted Machinery released Sub. Power Source 1468 | -10/Subcaves | Disturbed a concealed Subdweller 1487 | -10/Subcaves | Learned Materials stockpile data 1495 | -10/Subcaves | Discovered new exit (range 7) 1508 | -10/Subcaves | Entered Materials 1508 | -8/Materials | Evolved 4 slots: Propulsion x2, Utility x2 1881 | -8/Materials | Lost 3 parts (1p2n) 1991 | -8/Materials | Discovered new exit (range 15) 2113 | -8/Materials | Discovered new exit (range 9) 2122 | -8/Materials | Garrison activated, responded to threat 2197 | -8/Materials | Build established: Scavenger-Mutant 2220 | -8/Materials | Identified exit to Garrison 2220 | -8/Materials | Entered Garrison 2290 | -8/Garrison | Triggered checkpoint 2393 | -8/Garrison | Triggered checkpoint 2400 | -8/Garrison | Triggered checkpoint 2524 | -8/Garrison | Core integrity fell below 50% 2580 | -8/Garrison | Triggered checkpoint 2608 | -8/Garrison | Core integrity fell below 20% 2637 | -8/Garrison | Self-destructed Last Messages --------------- 02592_ Penetrated by Slug. 02594_ Slug penetrates Reinforced Barrier. 02595_ The unstable cave ceiling collapses. 02595_ Penetrated by Slug. 02595_ Acquired Lgt. Assault Rifle. 02597_ Penetrated by Slug. 02599_ Acquired Lgt. Assault Rifle. 02601_ Critical hit (Destroy). 02601_ Arm. Treads destroyed. 02601_ Rocket Launcher destroyed. 02604_ Penetrated by Slug. 02604_ Slug penetrates Wall. 02605_ Acquired 11 matter. 02607_ Mic. Nuclear Core destroyed. 02610_ Slug penetrates Wall. 02622_ Connecting with Garrison Terminal... 02622_ ALERT: Suspicious activity at Terminal G002. Transmitting hostile system tracking data. 02624_ Penetrated by Slug. 02624_ Imp. Aluminum Leg destroyed. Map ----- +----------------------------------------------------+ | ?????????????????????????????????????????????????? | | ???? ??????????????????????????????????????????? | | ???# #?????????????????????????????????????????? | | ???# #?????????????????????????????????????????? | | ???# #?????????????????????????????????????????? | | ???# #???????? #???????????????????????????????? | | ???# #???????? #???????????????????????????????? | | ???# #??????? #???????????????????????????????? | | ???# ##""""## ##??????????????????????????????? | | ???# #??????????????????????????????? | | ???+ #??????????????????????????????? | | ???# #??????????????????????????????? | | ???# ## #??????????????????????????????? | | ?### ## ###????????????????????????????? | | ?# ?????????????????????????????? | | ?# * ?????????????????????????????? | | ?# ] ??????????????????????????????? | | ?# ! ! ??????????????????????????????? | | ?###*= # [ #??????????????????????????????? | | ??##% !## %= ##########?????????????????????? | | ??## % #?????????????????????? | | # */ = #?????????????????????? | | #### ! = ####### #?????????????????????? | | ???## ## # % #?????# #?????????????????????? | | ????# ## #" ##????# #?????????????????????? | | ????# ####### = #????#@ #?????????????????????? | | ????# #????# # ##?????# #?????????????????????? | | ????# #????# ##?????# #?????????????????????? | | ????# #????## #?????# #?????????????????????? | | ????# #?????## ##???### #?????????????????????? | | ##### #??????# ######T#xY##### #???????????????? | | #??????# h ?????????? | | #??????# ?????????? | | ## #####??????#"######### ##########????????????? | | ?# #??????????# ????????# #?????????????????????? | | ?# #??????????# ????????# #?????????????????????? | | ?# #??????????# ????????# #?????????????????????? | | ?# #??????????# ????????# #?????????????????????? | | ?# #??????????# ????????# #?????????????????????? | | ?# #??????????##????????# #?????????????????????? | | ?# #????????????????????# #?????????????????????? | | ? ????????????????????# #?????????????????????? | | ? ????????????????????? #?????????????????????? | | ? ????????????????????? ??????????????????????? | | ? ????????????????????? ??????????????????????? | | ?"""????????????????????? ??????????????????????? | | ?###?????????????????????????????????????????????? | | ?????????????????????????????????????????????????? | | ?????????????????????????????????????????????????? | | ?????????????????????????????????????????????????? | +----------------------------------------------------+ Best States ------------- Heat Dissipation 45 Energy Generation 15 Energy Capacity 160 Matter Stores 300 Matter Capacity 300 Sight Range 16 Robot Scan Range 14 Terrain Scan Range 14 Terrain Scan Density 85 Evasion (%) 55 Targeting Accuracy 5 Recoil Reduction 4 Item Schematics ----------------- None Robot Schematics ------------------ None Fabricated ------------ Nothing Repaired ---------- Nothing Alien Tech Used ----------------- None Achievements -------------- None Challenges ------------ None Game ------ Seed AlphaVortexCharge Manual? 0 Play Time 00:57:09 Cumulative 11.8 hours Start 2025.05.31 @ 14:32:42 End 2025.05.31 @ 15:41:24 Sessions 1 Manual Loads 0 Difficulty Rogue Special Mode None Game No. 10 Rogue 10 Adventurer 0 Explorer 0 Win Type - Total 0 Types 0/0/0/0/0/0/0/0/0/0 Lore% 4 Gallery% 15 Achievement% 13 Wizard Run 0 Options --------- Layout 0 ASCII 0 Keyboard 0 Movement Mouse Keybinds 0 Fullscreen 2 Font 18/Smallcaps Map View 76x50 Zoom Use 0% Tactical HUD 1 Map Filters NONE Filters NONE Steam 1 RUN: ff0e1168-c31e-414e-96eb-a7fc220656fa